bitfinex/quotes_BTCUSD_20241107
["timestamp","ask_amount","ask_price","bid_price","bid_amount"]
[1731012942951,0.023,76442.0,76433.0,0.19645979]
[1731012942952,0.023,76438.0,76433.0,0.19645979]
[1731012943181,0.0487,76439.0,76425.0,0.001668]
[1731012943182,0.023,76436.0,76425.0,0.001668]
[1731012943410,0.13224102,76435.0,76432.0,0.19645979]
[1731012943624,0.13224102,76435.0,76425.0,0.001668]
[1731012944556,0.13224102,76435.0,76425.0,0.101668]
[1731012945211,0.0487,76439.0,76425.0,0.14391909]
[1731012945453,0.0487,76439.0,76425.0,0.14653584]
[1731012945454,0.4,76435.0,76425.0,0.14653584]
[1731012945934,0.4,76435.0,76425.0,0.14391909]
[1731012946374,0.4,76440.0,76425.0,0.14391909]
[1731012946594,0.53224102,76440.0,76425.0,0.14391909]
[1731012947049,0.13224102,76439.0,76425.0,0.04391909]
[1731012947273,0.13224102,76439.0,76427.0,0.1]
[1731012948350,0.4,76433.0,76427.0,0.1]
[1731012949709,0.4,76433.0,76427.0,0.101668]
[1731012950150,0.4,76433.0,76427.0,0.001668]
[1731012951255,0.4,76432.0,76427.0,0.001668]
[1731012952381,0.4,76435.0,76427.0,0.001668]
[1731012952615,0.53224102,76435.0,76427.0,0.001668]
[1731012953324,0.4,76432.0,76427.0,0.001668]
[1731012954449,0.13224102,76431.0,76427.0,0.001668]
[1731012957822,0.1029,76430.0,76427.0,0.001668]
[1731012958021,0.023,76430.0,76428.0,0.19645979]
[1731012958161,0.4,76432.0,76429.0,0.1]
[1731012958367,0.4,76443.0,76441.0,0.1]
[1731012958706,0.4,76443.0,76435.0,0.005]
[1731012958885,0.4,76443.0,76441.0,0.05847165]
[1731012959043,0.4,76443.0,76441.0,0.03897421]
[1731012959256,0.4,76465.0,76442.0,0.03897395]
[1731012959486,0.4,76465.0,76443.0,0.03897395]
[1731012959708,0.44179468,76465.0,76443.0,0.0415898]
[1731012959918,0.44179468,76465.0,76443.0,0.03897395]
[1731012960338,0.44679468,76465.0,76442.0,0.1]
[1731012960537,0.0466,76458.0,76442.0,0.1]
[1731012960831,0.0812,76455.0,76431.0,0.03897395]
[1731012961059,0.0812,76455.0,76438.0,0.1]
[1731012961706,0.0812,76455.0,76440.0,0.1]
[1731012961916,0.44179468,76465.0,76446.0,0.01]
[1731012962134,0.44179468,76465.0,76444.0,0.07795599]
[1731012962135,0.25890231,76465.0,76456.0,0.0389662]
[1731012962371,0.000741,76475.0,76456.0,0.0389662]
[1731012962591,0.000741,76475.0,76457.0,0.0389662]
[1731012962831,0.13224102,76474.0,76454.0,0.1]
[1731012963048,0.13224102,76474.0,76458.0,0.1]
[1731012963678,0.023,76473.0,76458.0,0.1]
[1731012963909,0.13224102,76472.0,76458.0,0.1]
[1731012964360,0.4,76471.0,76458.0,0.1]
[1731012964619,0.13224102,76470.0,76458.0,0.1]
[1731012967635,0.13224102,76470.0,76458.0,0.14216411]
[1731012970414,0.023,76468.0,76458.0,0.03550016]
[1731012970603,0.023,76466.0,76459.0,0.19645979]
[1731012970843,0.023,76464.0,76459.0,0.19645979]
[1731012971046,0.13224102,76463.0,76459.0,0.19645979]
[1731012971253,0.13224102,76463.0,76449.0,0.19645979]
[1731012971470,0.4,76460.0,76450.0,0.1]
[1731012971679,0.13224102,76459.0,76450.0,0.1]
[1731012971894,0.023,76458.0,76442.0,0.00045934]
[1731012972114,0.023,76458.0,76449.0,0.19645979]
[1731012972115,0.13224102,76457.0,76449.0,0.19645979]
[1731012972323,0.13224102,76457.0,76441.0,0.19645979]
[1731012972537,0.023,76456.0,76441.0,0.19645979]
[1731012972760,0.023,76454.0,76441.0,0.19645979]
[1731012972964,0.023,76452.0,76441.0,0.19645979]
[1731012973175,0.13224102,76451.0,76441.0,0.19645979]
[1731012973428,0.13224102,76451.0,76427.0,0.001668]
[1731012973651,0.13224102,76451.0,76441.0,0.19645979]
[1731012973652,0.14776512,76451.0,76441.0,0.19645979]
[1731012973843,0.13224102,76451.0,76434.0,0.1]
[1731012974557,0.13224102,76451.0,76448.0,0.1]
[1731012975620,0.13224102,76451.0,76442.0,0.001668]
[1731012975885,0.13224102,76451.0,76445.0,0.1]
[1731012977031,0.13224102,76451.0,76442.0,0.001668]
[1731012977264,0.13224102,76451.0,76444.0,0.1]
[1731012977430,0.4,76446.0,76444.0,0.1]
[1731012978271,0.13224102,76445.0,76444.0,0.1]
[1731012978440,0.4,76446.0,76445.0,0.1]
[1731012978647,0.4,76446.0,76445.0,0.1101668]
[1731012979456,0.7206539,76451.0,76446.0,0.1]
[1731012979738,0.85289492,76451.0,76446.0,0.1]
[1731012980572,0.85289492,76451.0,76442.0,0.001668]
[1731012981948,0.66882485,76451.0,76445.0,0.1]
[1731012983150,0.66882485,76451.0,76442.0,0.001668]
[1731012983594,0.05170246,76458.0,76442.0,0.001668]
[1731012983802,0.13224102,76458.0,76442.0,0.001668]
[1731012984205,0.13224102,76458.0,76444.0,0.1]
[1731012986532,0.13224102,76458.0,76445.0,0.001668]
[1731012986753,0.000834,76451.0,76445.0,0.001668]
[1731012991334,0.000834,76451.0,76447.0,0.1]
[1731012991573,0.000834,76451.0,76448.0,0.00261592]
[1731012992450,0.000834,76451.0,76450.0,0.1]
[1731012992695,0.000834,76451.0,76450.0,0.10261575]
[1731012993166,0.00034258,76451.0,76450.0,0.10261575]
[1731012993391,0.00034258,76451.0,76450.0,0.14153855]
[1731012993616,0.00034258,76451.0,76450.0,0.04153855]
[1731012994051,0.00034258,76451.0,76450.0,0.0389228]
[1731012996015,0.00034258,76451.0,76450.0,0.27377943]
[1731012996224,0.00034258,76451.0,76450.0,0.29729426]
[1731012996864,0.00034258,76451.0,76450.0,0.29229426]
[1731012998390,0.00034258,76451.0,76450.0,0.28729426]
[1731012998849,0.00034258,76451.0,76450.0,0.37170965]
[1731012999078,0.00034258,76451.0,76450.0,0.37909426]
[1731012999315,0.00034258,76451.0,76450.0,0.38109426]
[1731012999536,0.66882485,76473.0,76457.0,0.005]
[1731012999764,0.000741,76475.0,76463.0,0.03894148]
[1731013000192,0.000741,76475.0,76462.0,0.03894148]
[1731013000600,0.000741,76475.0,76463.0,0.03894148]
[1731013001223,0.000741,76475.0,76461.0,0.13894148]
[1731013001472,0.000741,76475.0,76462.0,0.03894148]
[1731013001683,0.000741,76475.0,76463.0,0.04548421]
[1731013001923,0.000741,76475.0,76464.0,0.17788296]
[1731013002141,0.000741,76475.0,76464.0,0.18178307]
[1731013002373,0.000741,76475.0,76464.0,0.31786856]
[1731013002805,0.000741,76475.0,76464.0,0.1]
[1731013003029,0.0816,76474.0,76460.0,0.03893741]
[1731013003245,0.0816,76474.0,76451.0,0.03893741]
[1731013003246,0.00034262,76465.0,76451.0,0.03893741]
[1731013003464,0.00034262,76465.0,76456.0,0.19645979]
[1731013003676,0.00034262,76465.0,76446.0,0.03893741]
[1731013003893,0.00034262,76465.0,76445.0,0.001668]
[1731013003894,0.0472,76463.0,76449.0,0.19645979]
[1731013004331,0.4,76462.0,76449.0,0.19645979]
[1731013004992,0.23444102,76461.0,76445.0,0.001668]
[1731013005202,0.23444102,76461.0,76449.0,0.19645979]
[1731013006132,0.23444102,76461.0,76450.0,0.1]
[1731013006787,0.0792,76461.0,76450.0,0.1]
[1731013007433,0.13224102,76460.0,76450.0,0.1]
[1731013008051,0.13224102,76460.0,76448.0,0.001668]
[1731013008261,0.4,76456.0,76450.0,0.1]
[1731013008705,0.4,76456.0,76442.0,0.001668]
[1731013008706,0.023,76446.0,76442.0,0.001668]
[1731013008919,0.023,76444.0,76443.0,0.19645979]
[1731013009144,0.15524102,76444.0,76443.0,0.19645979]
[1731013009345,0.15524102,76444.0,76442.0,0.001668]
[1731013009571,0.13224102,76443.0,76442.0,0.001668]
[1731013010030,0.15524102,76443.0,76442.0,0.001668]
[1731013010892,0.28044102,76443.0,76442.0,0.001668]
[1731013011316,0.68044102,76443.0,76442.0,0.001668]
[1731013012232,0.68044102,76443.0,76442.0,0.05443733]
[1731013012451,0.023,76442.0,76433.0,0.1]
[1731013012678,0.023,76440.0,76433.0,0.1]
[1731013012882,0.023,76442.0,76433.0,0.1]
[1731013012883,0.023,76438.0,76433.0,0.1]
[1731013013103,0.023,76438.0,76427.0,0.001668]
[1731013013104,0.023,76436.0,76427.0,0.001668]
[1731013013314,0.005,76438.0,76427.0,0.001668]
[1731013013315,0.423,76434.0,76427.0,0.001668]
[1731013013528,0.023,76432.0,76427.0,0.001668]
[1731013013734,0.13224102,76432.0,76427.0,0.001668]
[1731013013934,0.4,76434.0,76427.0,0.001668]
[1731013014349,0.023,76441.0,76427.0,0.001668]
[1731013014556,0.023,76439.0,76427.0,0.001668]
[1731013014760,0.13224102,76438.0,76427.0,0.001668]
[1731013016041,0.4,76442.0,76436.0,0.05847481]
[1731013016256,0.01,76468.0,76436.0,0.05847481]
[1731013016257,0.0754,76459.0,76441.0,0.05847481]
[1731013016472,0.13224102,76459.0,76444.0,0.05847481]
[1731013016695,0.13224102,76459.0,76445.0,0.05847481]
[1731013017579,0.13224102,76459.0,76444.0,0.15847481]
[1731013017784,0.13224102,76459.0,76444.0,0.16138292]
[1731013018081,0.13224102,76459.0,76444.0,0.10290811]
[1731013018442,0.13224102,76459.0,76444.0,0.15460109]
[1731013018651,0.13224102,76459.0,76444.0,0.21300141]
[1731013018856,0.13224102,76459.0,76448.0,0.03893317]
[1731013020195,0.13224102,76459.0,76447.0,0.03893317]
[1731013020622,0.13224102,76459.0,76448.0,0.03893317]
[1731013021060,0.13224102,76459.0,76447.0,0.03893317]
[1731013021988,0.4,76460.0,76452.0,0.1]
[1731013022195,0.4,76460.0,76454.0,0.1]
[1731013022424,0.5225,76478.0,76456.0,0.03893317]
[1731013022651,0.5225,76478.0,76454.0,0.29064134]
[1731013022652,0.5225,76478.0,76457.0,0.04154854]
[1731013022870,0.45307121,76478.0,76457.0,0.00261537]
[1731013023102,0.45307121,76478.0,76463.0,0.07784387]
[1731013023341,0.45307121,76478.0,76464.0,0.1583846]
[1731013023560,0.4,76477.0,76464.0,0.1]
[1731013024214,0.4,76477.0,76464.0,0.03891869]
[1731013024459,0.4,76477.0,76464.0,0.03892008]
[1731013024661,0.4,76477.0,76464.0,0.03392008]
[1731013024870,0.4,76477.0,76463.0,0.1]
[1731013025301,0.4,76477.0,76463.0,0.10261537]
[1731013025510,0.4,76477.0,76463.0,0.00261537]
[1731013025729,0.4,76477.0,76463.0,0.06099997]
[1731013026161,0.4,76477.0,76463.0,0.07784387]
[1731013026366,0.4,76482.0,76463.0,0.07784387]
[1731013026546,0.4,76482.0,76462.0,0.1]
[1731013026547,0.4,76482.0,76464.0,0.05835508]
[1731013026744,0.4,76482.0,76462.0,0.1]
[1731013026954,0.4,76482.0,76464.0,0.05835538]
[1731013027178,0.4,76482.0,76465.0,0.00261526]
[1731013027383,0.4,76482.0,76464.0,0.05835538]
[1731013027630,0.4526016,76482.0,76464.0,0.05835538]
[1731013028298,0.4526016,76482.0,76464.0,0.15835538]
[1731013028521,0.4526016,76482.0,76464.0,0.1]
[1731013029405,0.4,76482.0,76473.0,0.09725897]
[1731013029650,0.30730441,76482.0,76474.0,0.00761504]
[1731013029853,0.30730441,76482.0,76480.0,0.0777487]
[1731013030062,0.30730441,76482.0,76481.0,0.20768808]
[1731013030514,0.000741,76490.0,76482.0,0.005]
[1731013030785,0.000741,76490.0,76483.0,0.02390261]
[1731013032690,0.000741,76490.0,76487.0,0.005]
[1731013032916,0.000741,76490.0,76489.0,0.005]
[1731013033387,0.00049984,76490.0,76489.0,0.02628808]
[1731013034052,0.00049984,76490.0,76489.0,0.2585291]
[1731013035634,0.00049984,76490.0,76489.0,0.25882118]
[1731013036047,0.00049984,76490.0,76489.0,0.00029208]
[1731013037306,0.00049984,76490.0,76489.0,0.0112679]
[1731013037918,0.00049984,76490.0,76489.0,0.00029208]
[1731013039935,0.00049984,76490.0,76489.0,0.25936282]
[1731013040354,0.00049984,76490.0,76489.0,0.12212179]
[1731013040523,0.00049984,76490.0,76489.0,0.12473621]
[1731013040723,0.00025391,76490.0,76489.0,0.12473621]
[1731013040948,0.00025391,76490.0,76489.0,0.02212179]
[1731013041917,0.00025391,76490.0,76489.0,0.00029207]
[1731013042559,0.15549493,76490.0,76489.0,0.00029207]
[1731013043555,0.15503399,76490.0,76489.0,0.00029207]
[1731013044438,0.4,76496.0,76489.0,0.00029207]
[1731013045503,0.13502974,76498.0,76489.0,0.00029207]
[1731013045915,0.000834,76490.0,76489.0,0.00029207]
[1731013050021,0.03107101,76492.0,76489.0,0.00029207]
[1731013053567,0.03057973,76492.0,76489.0,0.00029207]
[1731013056258,0.23774102,76491.0,76489.0,0.00029207]
[1731013056472,0.028,76490.0,76489.0,0.00029207]
[1731013056685,0.16024102,76490.0,76489.0,0.00029207]
[1731013056899,0.20694102,76490.0,76489.0,0.00029207]
[1731013057113,0.20494102,76490.0,76489.0,0.00029207]
[1731013057589,0.60994102,76490.0,76489.0,0.00029207]
[1731013057802,0.62407871,76490.0,76489.0,0.00029207]
[1731013058227,0.60994102,76490.0,76489.0,0.00029207]
[1731013058445,0.60994102,76490.0,76489.0,0.00196007]
[1731013058660,0.62207984,76490.0,76489.0,0.00196007]
[1731013059086,0.60994102,76490.0,76489.0,0.00196007]
[1731013061283,0.60494102,76490.0,76489.0,0.00196007]
[1731013061506,0.63534539,76490.0,76489.0,0.05532736]
[1731013061716,0.63534539,76490.0,76489.0,0.00196007]
[1731013063431,0.63034539,76490.0,76489.0,0.00196007]
[1731013065239,0.65334539,76490.0,76489.0,0.00196007]
[1731013065445,0.65834539,76490.0,76489.0,0.00196007]
[1731013065887,0.65834539,76490.0,76489.0,0.05435236]
[1731013066124,0.65834539,76490.0,76489.0,0.00196007]
[1731013072293,0.65334539,76490.0,76489.0,0.00196007]
[1731013072504,0.63034539,76490.0,76489.0,0.00196007]
[1731013072728,0.58064539,76490.0,76489.0,0.00196007]
[1731013073163,0.45340437,76490.0,76489.0,0.00196007]
[1731013073594,0.05340437,76490.0,76489.0,0.00196007]
[1731013073817,0.03057973,76492.0,76489.0,0.00196007]
[1731013074484,0.03057973,76492.0,76491.0,0.1]
[1731013074701,0.03057973,76492.0,76491.0,0.10029206]
[1731013075621,0.03057973,76492.0,76491.0,0.00029206]
[1731013077381,0.16282075,76492.0,76491.0,0.00029206]
[1731013078491,0.56282075,76492.0,76491.0,0.00029206]
[1731013080696,0.63272075,76492.0,76491.0,0.00029206]
[1731013080921,0.71192075,76492.0,76491.0,0.00029206]
[1731013081177,0.71192075,76492.0,76479.0,0.07791653]
[1731013081178,0.005,76481.0,76480.0,0.03895826]
[1731013081411,0.0849,76481.0,76480.0,0.03895826]
[1731013081626,0.023,76480.0,76479.0,0.03895826]
[1731013081826,0.023,76480.0,76472.0,0.23541805]
[1731013082304,0.023,76480.0,76472.0,0.19645979]
[1731013082509,0.023,76478.0,76468.0,0.03895826]
[1731013082716,0.13224102,76477.0,76468.0,0.03895826]
[1731013082932,0.13224102,76477.0,76467.0,0.03895826]
[1731013082933,0.002,76475.0,76467.0,0.03895826]
[1731013083143,0.13224102,76474.0,76467.0,0.03895826]
[1731013083348,0.13224102,76474.0,76464.0,0.19645979]
[1731013083349,0.0754,76472.0,76464.0,0.19645979]
[1731013083568,0.0754,76472.0,76455.0,0.09739566]
[1731013083569,0.048,76466.0,76462.0,0.03895826]
[1731013083798,0.048,76466.0,76460.0,0.03895826]
[1731013083799,0.015,76464.0,76460.0,0.03895826]
[1731013084025,0.015,76464.0,76459.0,0.23541805]
[1731013084026,0.15524102,76463.0,76459.0,0.23541805]
[1731013084250,0.15524102,76463.0,76459.0,0.19645979]
[1731013084468,0.15524102,76463.0,76444.0,0.07791653]
[1731013084469,0.005,76448.0,76447.0,0.04062626]
[1731013084676,0.005,76448.0,76442.0,0.001668]
[1731013084677,0.028,76444.0,76442.0,0.001668]
[1731013084889,0.15524102,76443.0,76442.0,0.04062626]
[1731013085106,0.0802,76457.0,76442.0,0.001668]
[1731013085320,0.005,76455.0,76443.0,0.03896443]
[1731013085560,0.005,76455.0,76442.0,0.001668]
[1731013085561,0.023,76444.0,76442.0,0.001668]
[1731013085745,0.13224102,76443.0,76442.0,0.001668]
[1731013085983,0.15524102,76443.0,76442.0,0.001668]
[1731013086404,0.20024102,76443.0,76442.0,0.001668]
[1731013086607,0.28594102,76443.0,76442.0,0.001668]
[1731013087547,0.68594102,76443.0,76442.0,0.001668]
[1731013090338,0.7401542,76443.0,76442.0,0.001668]
[1731013091888,0.7401542,76443.0,76427.0,0.001668]
[1731013091889,0.005,76430.0,76427.0,0.001668]
[1731013092093,0.15524102,76429.0,76427.0,0.001668]
[1731013093487,0.423,76428.0,76427.0,0.001668]
[1731013093704,0.55524102,76428.0,76427.0,0.001668]
[1731013097231,0.4,76428.0,76427.0,0.001668]
[1731013097870,0.53224102,76428.0,76427.0,0.001668]
[1731013099843,0.4,76428.0,76427.0,0.001668]
[1731013100491,0.05397254,76428.0,76427.0,0.001668]
[1731013100694,0.4,76437.0,76427.0,0.001668]
[1731013100951,0.023,76435.0,76430.0,0.1]
[1731013101206,0.023,76433.0,76427.0,0.001668]
[1731013101401,0.4,76430.0,76427.0,0.001668]
[1731013101623,0.13224102,76429.0,76427.0,0.001668]
[1731013102445,0.4,76428.0,76427.0,0.001668]
[1731013102686,0.53224102,76428.0,76427.0,0.001668]
[1731013104266,0.53224102,76428.0,76427.0,0.05495674]
[1731013104629,0.53224102,76428.0,76427.0,0.001668]
[1731013108595,0.53224102,76428.0,76427.0,0.05519662]
[1731013109228,0.58417407,76428.0,76427.0,0.05519662]
[1731013110550,0.60717407,76428.0,76427.0,0.05519662]
[1731013112839,0.45193305,76428.0,76427.0,0.05519662]
[1731013113384,0.05193305,76428.0,76427.0,0.05519662]
[1731013113581,0.4,76430.0,76427.0,0.05519662]
[1731013113987,0.01218183,76429.0,76427.0,0.05519662]
[1731013114202,0.4,76430.0,76427.0,0.05519662]
[1731013114408,0.01218734,76429.0,76427.0,0.05519662]
[1731013114773,0.4,76430.0,76429.0,0.1]
[1731013115623,0.000834,76442.0,76429.0,0.1]
[1731013115779,0.000834,76442.0,76428.0,0.1756]
[1731013116967,0.000834,76442.0,76429.0,0.19645979]
[1731013117180,0.000834,76442.0,76430.0,0.1]
[1731013123061,0.000834,76442.0,76428.0,0.0756]
[1731013123062,0.023,76440.0,76428.0,0.1756]
[1731013123265,0.14441514,76439.0,76427.0,0.05519662]
[1731013123467,0.4,76436.0,76429.0,0.19645979]
[1731013124048,0.4,76436.0,76427.0,0.05519662]
[1731013124259,0.01217434,76435.0,76427.0,0.05519662]
[1731013124462,0.4,76436.0,76427.0,0.05519662]
[1731013124668,0.01217439,76435.0,76427.0,0.05519662]
[1731013124909,0.17404118,76434.0,76427.0,0.05519662]
[1731013125130,0.035174,76433.0,76427.0,0.05519662]
[1731013125297,0.023,76431.0,76427.0,0.05519662]
[1731013125512,0.13224102,76430.0,76427.0,0.05519662]
[1731013127385,0.4,76428.0,76427.0,0.05519662]
[1731013127665,0.53224102,76428.0,76427.0,0.05519662]
[1731013128626,0.53364102,76428.0,76427.0,0.05519662]
[1731013129104,0.4014,76428.0,76427.0,0.05519662]
[1731013129323,0.0014,76428.0,76427.0,0.21374736]
[1731013129524,0.0014,76428.0,76427.0,0.15519662]
[1731013129784,0.0014,76428.0,76427.0,0.21374736]
[1731013130218,0.0014,76428.0,76427.0,0.15519662]
[1731013130429,0.0014,76428.0,76427.0,0.23312091]
[1731013131524,0.0014,76428.0,76427.0,0.07959229]
[1731013131979,0.0014,76428.0,76427.0,0.0797873]
[1731013132196,0.0014,76428.0,76427.0,0.00186301]
[1731013132405,0.15664102,76428.0,76427.0,0.00186301]
[1731013133363,0.15664102,76428.0,76427.0,0.06044838]
[1731013133575,0.55664102,76428.0,76427.0,0.00186301]
[1731013133825,0.63754102,76428.0,76427.0,0.00186301]
[1731013134193,0.65254102,76428.0,76427.0,0.00186301]
[1731013137832,0.70084102,76428.0,76427.0,0.00186301]
[1731013139445,0.75317202,76428.0,76427.0,0.00186301]
[1731013140064,0.75117202,76428.0,76427.0,0.00186301]
[1731013140710,0.82217314,76428.0,76427.0,0.00186301]
[1731013140911,0.82417314,76428.0,76427.0,0.00186301]
[1731013141828,0.75117202,76428.0,76427.0,0.00186301]
[1731013142644,0.53364102,76428.0,76427.0,0.00186301]
[1731013142868,0.4014,76428.0,76427.0,0.00186301]
[1731013143080,0.4014,76428.0,76427.0,0.17998142]
[1731013143302,0.0014,76428.0,76427.0,0.21904063]
[1731013143518,0.4,76447.0,76427.0,0.10447948]
[1731013143746,0.4,76447.0,76441.0,0.075]
[1731013143962,0.4,76447.0,76442.0,0.105]
[1731013144207,0.052295,76474.0,76447.0,0.005]
[1731013144431,0.012834,76489.0,76447.0,0.005]
[1731013144432,0.000834,76489.0,76468.0,0.03897023]
[1731013144652,0.13224102,76488.0,76469.0,0.03897023]
[1731013144878,0.005,76486.0,76466.0,0.1]
[1731013145095,0.005,76480.0,76469.0,0.1]
[1731013145309,0.002,76485.0,76461.0,0.1]
[1731013145310,0.005,76478.0,76461.0,0.1]
[1731013145574,0.005,76472.0,76461.0,0.1]
[1731013145778,0.13224102,76471.0,76461.0,0.1]
[1731013146006,0.13224102,76471.0,76470.0,0.29645979]
[1731013146237,0.005,76490.0,76471.0,0.1]
[1731013146426,0.13224102,76488.0,76471.0,0.1]
[1731013147083,0.13224102,76488.0,76473.0,0.1]
[1731013147290,0.13224102,76488.0,76473.0,0.100195]
[1731013147709,0.005,76483.0,76473.0,0.100195]
[1731013147912,0.028,76474.0,76473.0,0.000195]
[1731013148161,0.16024102,76474.0,76473.0,0.00019499]
[1731013148577,0.15524102,76474.0,76473.0,0.00019499]
[1731013149211,0.16024102,76474.0,76473.0,0.00019499]
[1731013149817,0.15524102,76474.0,76473.0,0.00019499]
[1731013150028,0.005,76487.0,76473.0,0.00019499]
[1731013150268,0.13224102,76486.0,76473.0,0.00019499]
[1731013150480,0.005,76484.0,76473.0,0.00019499]
[1731013150697,0.13224102,76483.0,76473.0,0.00019499]
[1731013150898,0.015,76479.0,76473.0,0.00019499]
[1731013151280,0.29444102,76474.0,76473.0,0.00019499]
[1731013151490,0.015,76467.0,76466.0,0.1962648]
[1731013151694,0.015,76467.0,76458.0,0.19645979]
[1731013151695,0.005,76463.0,76458.0,0.19645979]
[1731013151929,0.15524102,76462.0,76458.0,0.19645979]
[1731013152337,0.15524102,76462.0,76450.0,0.19645979]
[1731013152767,0.028,76451.0,76436.0,0.19645979]
[1731013152976,0.13224102,76450.0,76449.0,0.19645979]
[1731013153214,0.13224102,76450.0,76436.0,0.19645979]
[1731013153215,0.023,76449.0,76436.0,0.19645979]
[1731013153432,0.023,76447.0,76444.0,0.19645979]
[1731013153650,0.005,76462.0,76445.0,0.19645979]
[1731013153908,0.023,76460.0,76437.0,0.1]
[1731013154117,0.015,76463.0,76445.0,0.1]
[1731013154118,0.023,76458.0,76445.0,0.1]
[1731013154334,0.023,76456.0,76445.0,0.1]
[1731013154569,0.023,76454.0,76445.0,0.1]
[1731013154789,0.15524102,76454.0,76445.0,0.1]
[1731013155632,0.15524102,76454.0,76440.0,0.03892311]
[1731013155842,0.15524102,76454.0,76438.0,0.1]
[1731013156060,0.15524102,76454.0,76445.0,0.1]
[1731013156750,0.15524102,76454.0,76446.0,0.01]
[1731013156950,0.15524102,76454.0,76445.0,0.15409698]
[1731013157873,0.002,76479.0,76447.0,0.1]
[1731013157874,0.005,76477.0,76447.0,0.1]
[1731013158070,0.002,76485.0,76447.0,0.1]
[1731013158071,0.13224102,76473.0,76447.0,0.1]
[1731013158306,0.13224102,76473.0,76459.0,0.1]
[1731013158507,0.13224102,76473.0,76459.0,0.11]
[1731013158710,0.13224102,76473.0,76459.0,0.1]
[1731013159116,0.13224102,76473.0,76446.0,0.20145979]
[1731013159117,0.13224102,76473.0,76461.0,0.1]
[1731013159608,0.023,76472.0,76461.0,0.1]
[1731013159830,0.023,76470.0,76461.0,0.1]
[1731013160002,0.023,76468.0,76461.0,0.1]
[1731013160259,0.023,76466.0,76447.0,0.13885917]
[1731013160466,0.023,76464.0,76459.0,0.1]
[1731013160631,0.13224102,76463.0,76459.0,0.1]
[1731013161408,0.13224102,76463.0,76447.0,0.1]
[1731013161625,0.023,76462.0,76455.0,0.1]
[1731013161830,0.023,76460.0,76455.0,0.1]
[1731013162041,0.13224102,76460.0,76455.0,0.1]
[1731013162264,0.023,76459.0,76455.0,0.1]
[1731013162694,0.023,76459.0,76447.0,0.1]
[1731013162906,0.023,76457.0,76446.0,0.05236199]
[1731013163109,0.023,76455.0,76447.0,0.19645979]
[1731013163392,0.023,76453.0,76447.0,0.19645979]
[1731013163640,0.023,76451.0,76447.0,0.19645979]
[1731013163853,0.023,76449.0,76445.0,0.001668]
[1731013164078,0.023,76447.0,76445.0,0.001668]
[1731013164503,0.002,76468.0,76447.0,0.1]
[1731013164504,0.028,76467.0,76447.0,0.1]
[1731013164760,0.023,76464.0,76448.0,0.0101668]
[1731013164969,0.023,76462.0,76450.0,0.1]
[1731013165116,0.05252305,76466.0,76450.0,0.1]
[1731013165117,0.023,76460.0,76450.0,0.1]
[1731013165323,0.15524102,76460.0,76450.0,0.1]
[1731013166373,0.023,76458.0,76445.0,0.05419425]
[1731013166595,0.023,76456.0,76449.0,0.1]
[1731013167220,0.000834,76466.0,76445.0,0.06349959]
[1731013167221,0.000834,76466.0,76454.0,0.1]
[1731013168315,0.023,76464.0,76447.0,0.1]
[1731013168514,0.023,76462.0,76455.0,0.1]
[1731013169646,0.023,76462.0,76447.0,0.1]
[1731013169876,0.023,76462.0,76445.0,0.06349959]
[1731013169877,0.023,76460.0,76448.0,0.19645979]
[1731013170098,0.023,76458.0,76449.0,0.1]
[1731013170324,0.023,76456.0,76445.0,0.05419425]
[1731013170577,0.033,76446.0,76445.0,0.05419425]
[1731013170786,0.17024102,76446.0,76445.0,0.05419425]
[1731013171224,0.16024102,76446.0,76445.0,0.05419425]
[1731013171457,0.17024102,76446.0,76445.0,0.001668]
[1731013171664,0.023,76446.0,76445.0,0.001668]
[1731013174357,0.05288087,76458.0,76445.0,0.001668]
[1731013174575,0.0044,76462.0,76447.0,0.1]
[1731013174783,0.0044,76462.0,76458.0,0.1]
[1731013175612,0.0044,76462.0,76448.0,0.01405233]
[1731013175822,0.023,76461.0,76448.0,0.01405233]
[1731013176638,0.13224102,76460.0,76448.0,0.01405233]
[1731013176884,0.13224102,76460.0,76445.0,0.05549753]
[1731013176885,0.023,76459.0,76445.0,0.05549753]
[1731013177069,0.023,76457.0,76447.0,0.1]
[1731013177323,0.023,76455.0,76447.0,0.1]
[1731013177549,0.15524102,76455.0,76447.0,0.1]
[1731013177982,0.15524102,76455.0,76445.0,0.001668]
[1731013181034,0.023,76453.0,76445.0,0.001668]
[1731013181244,0.13224102,76452.0,76445.0,0.001668]
[1731013181445,0.023,76451.0,76445.0,0.001668]
[1731013181678,0.023,76465.0,76450.0,0.1]
[1731013181885,0.023,76463.0,76450.0,0.1]
[1731013182094,0.023,76463.0,76450.0,0.10261579]
[1731013182307,0.023,76463.0,76450.0,0.1]
[1731013182736,0.023,76463.0,76449.0,0.0388595]
[1731013182946,0.023,76463.0,76449.0,0.1388595]
[1731013183160,0.023,76463.0,76450.0,0.0388595]
[1731013183676,0.023,76463.0,76458.0,0.1]
[1731013183876,0.023,76463.0,76458.0,0.06307696]
[1731013184303,0.000834,76466.0,76458.0,0.06307696]
[1731013184954,0.000834,76466.0,76451.0,0.0794]
[1731013184955,0.000834,76466.0,76452.0,0.0388595]
[1731013185170,0.000834,76466.0,76453.0,0.0388595]
[1731013185376,0.13224102,76465.0,76453.0,0.0388595]
[1731013185634,0.023,76464.0,76452.0,0.19645979]
[1731013185799,0.13224102,76463.0,76452.0,0.19645979]
[1731013186015,0.023,76462.0,76453.0,0.1]
[1731013186241,0.023,76460.0,76453.0,0.1]
[1731013186439,0.023,76458.0,76453.0,0.1]
[1731013186642,0.023,76458.0,76449.0,0.05263077]
[1731013186843,0.023,76456.0,76449.0,0.05263077]
[1731013187019,0.023,76454.0,76447.0,0.001668]
[1731013187227,0.023,76454.0,76448.0,0.19645979]